[Event "*** Titled Tuesday Blitz"]
[Site "Chess.com"]
[Date "2021.03.02"]
[Round "9"]
[White "TST2014"]
[Black "mbachez"]
[Result "1-0"]
[WhiteElo "2635"]
[BlackElo "2483"]
[TimeControl "180+1"]
[EndTime "11:47:41 PST"]
[Termination "TST2014 won by resignation"]

1. d4 {[%clk 0:03:00.9]} 1... Nf6 {[%clk 0:02:59]} 2. c4 {[%clk 0:03:00]} 2...
g6 {[%clk 0:02:58.7]} 3. Nc3 {[%clk 0:02:59.8]} 3... Bg7 {[%clk 0:02:59]} 4. e4
{[%clk 0:02:59.8]} 4... d6 {[%clk 0:02:58.3]} 5. Nf3 {[%clk 0:03:00]} 5... O-O
{[%clk 0:02:58.1]} 6. Be2 {[%clk 0:03:00.4]} 6... e5 {[%clk 0:02:58.2]} 7. O-O
{[%clk 0:03:00.4]} 7... Bg4 {[%clk 0:02:58.1]} 8. d5 {[%clk 0:02:56.4]} 8...
Bxf3 {[%clk 0:02:56.1]} 9. Bxf3 {[%clk 0:02:56.1]} 9... a5 {[%clk 0:02:56.1]}
10. Be3 {[%clk 0:02:52.8]} 10... Na6 {[%clk 0:02:55.9]} 11. a3 {[%clk
0:02:50.3]} 11... Nd7 {[%clk 0:02:54.6]} 12. Qb1 {[%clk 0:02:43.1]} 12... f5
{[%clk 0:02:52.2]} 13. b4 {[%clk 0:02:36]} 13... Qh4 {[%clk 0:02:46.2]} 14. Rd1
{[%clk 0:02:03]} 14... f4 {[%clk 0:02:40.8]} 15. Bd2 {[%clk 0:01:55.5]} 15... g5
{[%clk 0:02:40.4]} 16. g3 {[%clk 0:01:40.1]} 16... Qh6 {[%clk 0:02:35.8]} 17.
Bg4 {[%clk 0:01:38.8]} 17... Nf6 {[%clk 0:02:35.5]} 18. Be6+ {[%clk 0:01:38.6]}
18... Kh8 {[%clk 0:02:35.4]} 19. f3 {[%clk 0:01:32.3]} 19... fxg3 {[%clk
0:02:17.2]} 20. hxg3 {[%clk 0:01:32]} 20... Nh5 {[%clk 0:02:16.3]} 21. Kg2
{[%clk 0:01:25.2]} 21... axb4 {[%clk 0:01:28.1]} 22. axb4 {[%clk 0:01:23.7]}
22... c5 {[%clk 0:01:24.1]} 23. b5 {[%clk 0:01:07.6]} 23... Nb4 {[%clk
0:01:23.5]} 24. Rxa8 {[%clk 0:01:06.1]} 24... Rxa8 {[%clk 0:01:21.9]} 25. Rh1
{[%clk 0:01:06.1]} 25... Qg6 {[%clk 0:01:21.6]} 26. Bf5 {[%clk 0:00:53.8]} 26...
Qe8 {[%clk 0:01:20.6]} 27. Bxg5 {[%clk 0:00:53.8]} 27... Ra3 {[%clk 0:01:18.2]}
28. Qb2 {[%clk 0:00:46.8]} 28... Ra8 {[%clk 0:01:12.1]} 29. g4 {[%clk
0:00:31.1]} 29... Nd3 {[%clk 0:01:06.7]} 30. Qd2 {[%clk 0:00:27.2]} 30... Nhf4+
{[%clk 0:01:06.1]} 31. Kg3 {[%clk 0:00:26.4]} 31... h5 {[%clk 0:00:55.7]} 32.
gxh5 {[%clk 0:00:22.6]} 32... Qg8 {[%clk 0:00:52.1]} 33. Bg4 {[%clk 0:00:19.5]}
33... Rf8 {[%clk 0:00:43.7]} 34. h6 {[%clk 0:00:19.6]} 34... Bf6 {[%clk
0:00:43.8]} 35. Bxf6+ {[%clk 0:00:17.1]} 35... Rxf6 {[%clk 0:00:43.7]} 36. Qh2
{[%clk 0:00:16.9]} 36... Rg6 {[%clk 0:00:42.7]} 37. Qh4 {[%clk 0:00:14.3]} 37...
Qf8 {[%clk 0:00:39.2]} 38. h7 {[%clk 0:00:13.8]} 38... Ne2+ {[%clk 0:00:37.9]}
39. Nxe2 {[%clk 0:00:13.3]} 39... Rf6 {[%clk 0:00:34.2]} 40. Qg5 {[%clk
0:00:11.5]} 40... Rf7 {[%clk 0:00:34.4]} 41. Qg8+ {[%clk 0:00:10.4]} 41... Qxg8
{[%clk 0:00:34.4]} 42. hxg8=Q+ {[%clk 0:00:10.7]} 42... Kxg8 {[%clk 0:00:35.3]}
43. Be6 {[%clk 0:00:10.5]} 43... Kg7 {[%clk 0:00:35.9]} 44. Bxf7 {[%clk
0:00:08.8]} 44... Nf4 {[%clk 0:00:36.1]} 45. Nxf4 {[%clk 0:00:08.4]} 45... exf4+
{[%clk 0:00:37]} 46. Kxf4 {[%clk 0:00:09.1]} 46... Kf6 {[%clk 0:00:37.7]} 47.
Rh7 {[%clk 0:00:09.1]} 47... Ke7 {[%clk 0:00:38.6]} 48. Be6+ {[%clk 0:00:09.1]}
48... Kd8 {[%clk 0:00:39.5]} 49. Rxb7 {[%clk 0:00:08.9]} 49... Ke8 {[%clk
0:00:39.1]} 50. Rd7 {[%clk 0:00:09.4]} 50... Kf8 {[%clk 0:00:39]} 51. b6 {[%clk
0:00:10.3]} 1-0

[Event "*** Titled Tuesday Blitz"]
[Site "Chess.com"]
[Date "2021.03.02"]
[Round "9"]
[White "Grimlock_Glasgow"]
[Black "jacky72"]
[Result "1/2-1/2"]
[WhiteElo "2497"]
[BlackElo "2695"]
[TimeControl "180+1"]
[EndTime "11:47:42 PST"]
[Termination "Game drawn by repetition"]

1. e4 {[%clk 0:03:00.9]} 1... e5 {[%clk 0:02:58.7]} 2. Nf3 {[%clk 0:02:59.8]}
2... Nc6 {[%clk 0:02:58.7]} 3. Bc4 {[%clk 0:03:00.2]} 3... Bc5 {[%clk
0:02:58.3]} 4. c3 {[%clk 0:02:59]} 4... Nf6 {[%clk 0:02:58.4]} 5. d4 {[%clk
0:02:59.6]} 5... exd4 {[%clk 0:02:59.3]} 6. e5 {[%clk 0:03:00.1]} 6... d5 {[%clk
0:02:59.5]} 7. Bb5 {[%clk 0:03:00.3]} 7... Ne4 {[%clk 0:03:00.1]} 8. cxd4 {[%clk
0:03:00.5]} 8... Bb6 {[%clk 0:03:00.7]} 9. Nc3 {[%clk 0:03:00.5]} 9... O-O
{[%clk 0:02:57.4]} 10. Be3 {[%clk 0:02:58.3]} 10... Bg4 {[%clk 0:02:57.8]} 11.
h3 {[%clk 0:02:56.7]} 11... Bh5 {[%clk 0:02:47.3]} 12. Qc2 {[%clk 0:02:56.2]}
12... Bg6 {[%clk 0:02:46.7]} 13. Qb3 {[%clk 0:02:56]} 13... Na5 {[%clk
0:02:40.4]} 14. Qxd5 {[%clk 0:02:45.8]} 14... Qe7 {[%clk 0:02:40.9]} 15. Qd7
{[%clk 0:02:36.3]} 15... Qb4 {[%clk 0:02:30.2]} 16. O-O {[%clk 0:02:24.5]} 16...
Rfd8 {[%clk 0:02:19.5]} 17. Nd5 {[%clk 0:02:21.1]} 17... Qxb2 {[%clk 0:01:50.6]}
18. Ne7+ {[%clk 0:02:16.6]} 18... Kf8 {[%clk 0:01:50.7]} 19. Nxg6+ {[%clk
0:02:12.6]} 19... hxg6 {[%clk 0:01:51.6]} 20. Qg4 {[%clk 0:02:10.8]} 20... Qxb5
{[%clk 0:01:44.9]} 21. Qxe4 {[%clk 0:02:10.4]} 21... Nc4 {[%clk 0:01:33.9]} 22.
Bg5 {[%clk 0:01:42.6]} 22... Rd7 {[%clk 0:01:22.4]} 23. Qh4 {[%clk 0:01:39.7]}
23... Kg8 {[%clk 0:01:22.1]} 24. Bf4 {[%clk 0:01:34.3]} 24... f6 {[%clk
0:01:12.4]} 25. exf6 {[%clk 0:01:30]} 25... Qh5 {[%clk 0:01:13.3]} 26. Qxh5
{[%clk 0:01:15.4]} 26... gxh5 {[%clk 0:01:13.5]} 27. Rac1 {[%clk 0:01:12]} 27...
Nb2 {[%clk 0:01:03.7]} 28. Ne5 {[%clk 0:00:42.8]} 28... Rxd4 {[%clk 0:01:02.8]}
29. Be3 {[%clk 0:00:32]} 29... Rd5 {[%clk 0:00:34.3]} 30. Bxb6 {[%clk
0:00:26.4]} 30... Rxe5 {[%clk 0:00:34.7]} 31. Bd4 {[%clk 0:00:19.9]} 31... Re2
{[%clk 0:00:30.7]} 32. Bxb2 {[%clk 0:00:19]} 32... Rxb2 {[%clk 0:00:30.3]} 33.
Rxc7 {[%clk 0:00:19.9]} 33... gxf6 {[%clk 0:00:30.7]} 34. Rd1 {[%clk 0:00:20]}
34... b5 {[%clk 0:00:21.5]} 35. Rdd7 {[%clk 0:00:18.6]} 35... Rxa2 {[%clk
0:00:20.9]} 36. Rg7+ {[%clk 0:00:17.4]} 36... Kh8 {[%clk 0:00:21.3]} 37. Rh7+
{[%clk 0:00:15.6]} 37... Kg8 {[%clk 0:00:21.8]} 38. Rxh5 {[%clk 0:00:15.8]}
38... b4 {[%clk 0:00:18]} 39. Rb5 {[%clk 0:00:14.7]} 39... a5 {[%clk 0:00:15.6]}
40. h4 {[%clk 0:00:14.2]} 40... Rb2 {[%clk 0:00:13.6]} 41. h5 {[%clk 0:00:12.5]}
41... a4 {[%clk 0:00:14.1]} 42. h6 {[%clk 0:00:12.7]} 42... a3 {[%clk
0:00:14.6]} 43. Rbb7 {[%clk 0:00:12.8]} 43... a2 {[%clk 0:00:09.9]} 44. Rg7+
{[%clk 0:00:12.2]} 44... Kf8 {[%clk 0:00:10.4]} 45. Rgf7+ {[%clk 0:00:07.7]}
45... Kg8 {[%clk 0:00:10.8]} 46. Rg7+ {[%clk 0:00:07.3]} 46... Kf8 {[%clk
0:00:11.3]} 47. Rgf7+ {[%clk 0:00:07.2]} 47... Kg8 {[%clk 0:00:11.7]} 48. Rg7+
{[%clk 0:00:07.1]} 1/2-1/2

[Event "*** Titled Tuesday Blitz"]
[Site "Chess.com"]
[Date "2021.03.02"]
[Round "9"]
[White "eldur16"]
[Black "MITerryble"]
[Result "1-0"]
[WhiteElo "2566"]
[BlackElo "2887"]
[TimeControl "180+1"]
[EndTime "11:47:42 PST"]
[Termination "eldur16 won on time"]

1. Nf3 {[%clk 0:03:00.9]} 1... Nf6 {[%clk 0:02:45.7]} 2. g3 {[%clk 0:03:00.5]}
2... d5 {[%clk 0:02:45.9]} 3. Bg2 {[%clk 0:03:00.1]} 3... c6 {[%clk 0:02:46.8]}
4. O-O {[%clk 0:02:59.8]} 4... Bg4 {[%clk 0:02:46.4]} 5. b3 {[%clk 0:02:58.9]}
5... Nbd7 {[%clk 0:02:46.4]} 6. Bb2 {[%clk 0:02:58.7]} 6... e6 {[%clk
0:02:46.8]} 7. d3 {[%clk 0:02:58.3]} 7... Bd6 {[%clk 0:02:46.7]} 8. Nbd2 {[%clk
0:02:57.1]} 8... Qe7 {[%clk 0:02:46]} 9. a3 {[%clk 0:02:54.2]} 9... O-O {[%clk
0:02:45.4]} 10. c4 {[%clk 0:02:54]} 10... e5 {[%clk 0:02:42.9]} 11. h3 {[%clk
0:02:48.1]} 11... Bh5 {[%clk 0:02:25.1]} 12. Qc2 {[%clk 0:02:46]} 12... Rfe8
{[%clk 0:02:18.6]} 13. e4 {[%clk 0:02:43.3]} 13... dxe4 {[%clk 0:02:02.5]} 14.
dxe4 {[%clk 0:02:42.6]} 14... a5 {[%clk 0:02:00]} 15. Nh4 {[%clk 0:02:35.9]}
15... Bc5 {[%clk 0:01:43.7]} 16. Kh2 {[%clk 0:02:29.6]} 16... Nf8 {[%clk
0:01:35.7]} 17. Nf5 {[%clk 0:02:25.6]} 17... Qc7 {[%clk 0:01:35.5]} 18. Bc3
{[%clk 0:01:58.8]} 18... Qb6 {[%clk 0:01:14.7]} 19. b4 {[%clk 0:01:40.3]} 19...
axb4 {[%clk 0:01:13.8]} 20. axb4 {[%clk 0:01:40.1]} 20... Bxb4 {[%clk
0:01:05.1]} 21. Qb2 {[%clk 0:01:20.7]} 21... Rxa1 {[%clk 0:00:56.5]} 22. Rxa1
{[%clk 0:01:19.4]} 22... Bc5 {[%clk 0:00:56.6]} 23. Bxe5 {[%clk 0:00:54.7]}
23... Qxb2 {[%clk 0:00:51.7]} 24. Bxb2 {[%clk 0:00:53.8]} 24... Bxf2 {[%clk
0:00:51.9]} 25. g4 {[%clk 0:00:32.3]} 25... Bg6 {[%clk 0:00:50]} 26. Nxg7 {[%clk
0:00:27.1]} 26... Kxg7 {[%clk 0:00:45.1]} 27. g5 {[%clk 0:00:26.9]} 27... Nd7
{[%clk 0:00:38.7]} 28. gxf6+ {[%clk 0:00:23.4]} 28... Kg8 {[%clk 0:00:28.7]} 29.
Bc3 {[%clk 0:00:18]} 29... Be3 {[%clk 0:00:25.1]} 30. Rb1 {[%clk 0:00:15.5]}
30... b6 {[%clk 0:00:22.2]} 31. Re1 {[%clk 0:00:13.3]} 31... Bf4+ {[%clk
0:00:21.3]} 32. Kg1 {[%clk 0:00:12.2]} 32... Ne5 {[%clk 0:00:14.2]} 33. Rf1
{[%clk 0:00:11.5]} 33... Be3+ {[%clk 0:00:13.8]} 34. Kh2 {[%clk 0:00:11.5]}
34... c5 {[%clk 0:00:03.8]} 35. Re1 {[%clk 0:00:10.4]} 35... Bf4+ {[%clk
0:00:03.3]} 36. Kg1 {[%clk 0:00:09.7]} 36... Nd3 {[%clk 0:00:04.2]} 37. Rb1
{[%clk 0:00:08.2]} 37... Nb4 {[%clk 0:00:02.7]} 38. Nf1 {[%clk 0:00:06.4]} 38...
Bd6 {[%clk 0:00:01.9]} 39. Nd2 {[%clk 0:00:05.4]} 39... Bf8 {[%clk 0:00:02]} 40.
Kf1 {[%clk 0:00:05.1]} 40... Rd8 {[%clk 0:00:02.2]} 41. Rb2 {[%clk 0:00:04.9]}
1-0

[Event "*** Titled Tuesday Blitz"]
[Site "Chess.com"]
[Date "2021.03.02"]
[Round "9"]
[White "zajka-molotok"]
[Black "GregShahade"]
[Result "0-1"]
[WhiteElo "2484"]
[BlackElo "2642"]
[TimeControl "180+1"]
[EndTime "11:47:48 PST"]
[Termination "GregShahade won on time"]

1. d4 {[%clk 0:03:00.9]} 1... Nf6 {[%clk 0:02:59.7]} 2. Bf4 {[%clk 0:03:00.9]}
2... g6 {[%clk 0:02:59.9]} 3. Nc3 {[%clk 0:02:59.5]} 3... d5 {[%clk 0:03:00.2]}
4. e3 {[%clk 0:02:59.3]} 4... Bg7 {[%clk 0:03:00.3]} 5. h4 {[%clk 0:02:59.5]}
5... c6 {[%clk 0:03:00.2]} 6. Be2 {[%clk 0:02:57.9]} 6... h5 {[%clk 0:03:00.2]}
7. Nf3 {[%clk 0:02:57]} 7... a5 {[%clk 0:02:59.3]} 8. Ne5 {[%clk 0:02:53.4]}
8... Nbd7 {[%clk 0:02:56.6]} 9. f3 {[%clk 0:02:48.9]} 9... Nxe5 {[%clk
0:02:51.2]} 10. Bxe5 {[%clk 0:02:49.8]} 10... Kf8 {[%clk 0:02:40.5]} 11. Qd3
{[%clk 0:02:33.5]} 11... b5 {[%clk 0:02:34.2]} 12. a3 {[%clk 0:02:29.4]} 12...
Ba6 {[%clk 0:02:29.3]} 13. b4 {[%clk 0:02:25.4]} 13... Nd7 {[%clk 0:02:21]} 14.
Bxg7+ {[%clk 0:02:23.2]} 14... Kxg7 {[%clk 0:02:21.9]} 15. e4 {[%clk 0:02:18.8]}
15... Nb6 {[%clk 0:02:16.1]} 16. O-O {[%clk 0:02:15.5]} 16... Nc4 {[%clk
0:02:12]} 17. e5 {[%clk 0:02:01.5]} 17... e6 {[%clk 0:02:08.6]} 18. g3 {[%clk
0:02:00.3]} 18... g5 {[%clk 0:02:02]} 19. hxg5 {[%clk 0:01:55.4]} 19... Qxg5
{[%clk 0:02:02.1]} 20. Kf2 {[%clk 0:01:55.4]} 20... h4 {[%clk 0:01:52.6]} 21. f4
{[%clk 0:01:43.6]} 21... hxg3+ {[%clk 0:01:49.7]} 22. Qxg3 {[%clk 0:01:44.5]}
22... Qxg3+ {[%clk 0:01:43]} 23. Kxg3 {[%clk 0:01:45.4]} 23... Ne3 {[%clk
0:01:21.9]} 24. Rfc1 {[%clk 0:01:36.4]} 24... Rag8 {[%clk 0:01:21.9]} 25. Kf2
{[%clk 0:01:32]} 25... Nf5 {[%clk 0:01:01.6]} 26. Rg1+ {[%clk 0:01:27.4]} 26...
Kf8 {[%clk 0:01:01.8]} 27. Rxg8+ {[%clk 0:01:16.2]} 27... Kxg8 {[%clk
0:01:02.7]} 28. Rg1+ {[%clk 0:01:13]} 28... Kf8 {[%clk 0:01:02.1]} 29. Rd1
{[%clk 0:01:03.1]} 29... Rh2+ {[%clk 0:01:01.5]} 30. Ke1 {[%clk 0:00:54.5]}
30... Rh4 {[%clk 0:01:00]} 31. bxa5 {[%clk 0:00:51.8]} 31... Rxf4 {[%clk
0:00:51.8]} 32. a4 {[%clk 0:00:51.9]} 32... Nxd4 {[%clk 0:00:52.1]} 33. axb5
{[%clk 0:00:49.9]} 33... cxb5 {[%clk 0:00:50.1]} 34. Bd3 {[%clk 0:00:45.4]}
34... Nf3+ {[%clk 0:00:42.5]} 35. Ke2 {[%clk 0:00:43.3]} 35... Nxe5 {[%clk
0:00:43]} 36. Bxb5 {[%clk 0:00:43.2]} 36... Bxb5+ {[%clk 0:00:40.9]} 37. Nxb5
{[%clk 0:00:44.1]} 37... Ra4 {[%clk 0:00:40.4]} 38. Ke3 {[%clk 0:00:34.5]} 38...
Rxa5 {[%clk 0:00:36.5]} 39. Rb1 {[%clk 0:00:33.1]} 39... Nc4+ {[%clk 0:00:35.6]}
40. Kd4 {[%clk 0:00:32.7]} 40... Ke7 {[%clk 0:00:30.5]} 41. c3 {[%clk
0:00:31.8]} 41... f6 {[%clk 0:00:25.3]} 42. Rb4 {[%clk 0:00:26.7]} 42... Ne5
{[%clk 0:00:24]} 43. Rb3 {[%clk 0:00:18.4]} 43... Ra4+ {[%clk 0:00:24.3]} 44.
Ke3 {[%clk 0:00:16.1]} 44... Rc4 {[%clk 0:00:24.5]} 45. Nd4 {[%clk 0:00:14.6]}
45... Rc7 {[%clk 0:00:23.3]} 46. Kd2 {[%clk 0:00:13.3]} 46... Nc4+ {[%clk
0:00:23.6]} 47. Kd3 {[%clk 0:00:13]} 47... e5 {[%clk 0:00:24.1]} 48. Nf5+ {[%clk
0:00:11.7]} 48... Ke6 {[%clk 0:00:24.4]} 49. Ng3 {[%clk 0:00:09]} 49... Rg7
{[%clk 0:00:24.1]} 50. Ne2 {[%clk 0:00:06.5]} 50... Rh7 {[%clk 0:00:23.2]} 51.
Rb8 {[%clk 0:00:03.2]} 51... Rh3+ {[%clk 0:00:22.8]} 52. Kc2 {[%clk 0:00:03.5]}
52... Rh2 {[%clk 0:00:23.1]} 53. Kd3 {[%clk 0:00:02.8]} 53... e4+ {[%clk
0:00:23.4]} 54. Kd4 {[%clk 0:00:03.1]} 54... Rxe2 {[%clk 0:00:23]} 55. Re8+
{[%clk 0:00:01.1]} 55... Kf5 {[%clk 0:00:23.2]} 0-1

[Event "*** Titled Tuesday Blitz"]
[Site "Chess.com"]
[Date "2021.03.02"]
[Round "9"]
[White "Sjakkerntobi"]
[Black "profofchess"]
[Result "0-1"]
[WhiteElo "2338"]
[BlackElo "2477"]
[TimeControl "180+1"]
[EndTime "11:47:50 PST"]
[Termination "profofchess won by checkmate"]

1. e4 {[%clk 0:03:00.9]} 1... e6 {[%clk 0:03:00.4]} 2. d4 {[%clk 0:02:59.9]}
2... d5 {[%clk 0:03:01]} 3. Nd2 {[%clk 0:03:00.1]} 3... e5 {[%clk 0:03:00.5]} 4.
dxe5 {[%clk 0:02:58.5]} 4... dxe4 {[%clk 0:03:00.7]} 5. Nxe4 {[%clk 0:02:58.3]}
5... Qxd1+ {[%clk 0:03:01.1]} 6. Kxd1 {[%clk 0:02:59.1]} 6... Nc6 {[%clk
0:03:01.3]} 7. Bf4 {[%clk 0:02:58.3]} 7... Nge7 {[%clk 0:03:00.6]} 8. Bb5 {[%clk
0:02:58]} 8... Bf5 {[%clk 0:02:48]} 9. Ng3 {[%clk 0:02:46.6]} 9... O-O-O+ {[%clk
0:02:33.6]} 10. Ke1 {[%clk 0:02:45.4]} 10... Bxc2 {[%clk 0:02:19.4]} 11. Rc1
{[%clk 0:02:40.9]} 11... Nd4 {[%clk 0:02:08.9]} 12. N1e2 {[%clk 0:02:22.7]}
12... Nxb5 {[%clk 0:02:04.7]} 13. Rxc2 {[%clk 0:02:21.1]} 13... Ng6 {[%clk
0:02:02.8]} 14. Bg5 {[%clk 0:02:21.2]} 14... Bb4+ {[%clk 0:02:00.9]} 15. Nc3
{[%clk 0:02:19.9]} 15... Rde8 {[%clk 0:01:45.5]} 16. Bd2 {[%clk 0:02:13.9]}
16... Rxe5+ {[%clk 0:01:43.2]} 17. Kd1 {[%clk 0:02:14.2]} 17... Nxc3+ {[%clk
0:01:40]} 18. Bxc3 {[%clk 0:02:11.1]} 18... Rd8+ {[%clk 0:01:38.2]} 19. Rd2
{[%clk 0:02:10.8]} 19... Rxd2+ {[%clk 0:01:31.2]} 20. Kxd2 {[%clk 0:02:10.2]}
20... Bxc3+ {[%clk 0:01:29.9]} 21. bxc3 {[%clk 0:02:11.1]} 21... Ra5 {[%clk
0:01:28.2]} 22. Ra1 {[%clk 0:02:09.3]} 22... Ne5 {[%clk 0:01:23.7]} 23. Ne4
{[%clk 0:02:07.4]} 23... Kd7 {[%clk 0:01:18.8]} 24. h3 {[%clk 0:02:03.9]} 24...
f5 {[%clk 0:01:15.2]} 25. Ng5 {[%clk 0:02:03.2]} 25... h6 {[%clk 0:01:14.3]} 26.
Nf3 {[%clk 0:01:58.8]} 26... Nxf3+ {[%clk 0:01:12.9]} 27. gxf3 {[%clk
0:01:59.7]} 27... Ra4 {[%clk 0:01:08.8]} 28. Kd3 {[%clk 0:01:58.9]} 28... b5
{[%clk 0:01:09]} 29. Ke3 {[%clk 0:01:51.8]} 29... Kd6 {[%clk 0:01:02.4]} 30.
Rd1+ {[%clk 0:01:51.6]} 30... Kc6 {[%clk 0:01:01.2]} 31. Rd2 {[%clk 0:01:52.5]}
31... Rh4 {[%clk 0:00:56.7]} 32. Rd8 {[%clk 0:01:46.2]} 32... Rxh3 {[%clk
0:00:56.5]} 33. Rf8 {[%clk 0:01:45.5]} 33... Rh5 {[%clk 0:00:50.7]} 34. Rf7
{[%clk 0:01:44.5]} 34... Rg5 {[%clk 0:00:50.8]} 35. f4 {[%clk 0:01:44.7]} 35...
Rg1 {[%clk 0:00:47.3]} 36. Rxf5 {[%clk 0:01:43.6]} 36... Ra1 {[%clk 0:00:44.8]}
37. Rf7 {[%clk 0:01:43.7]} 37... Rg1 {[%clk 0:00:41.2]} 38. Kd4 {[%clk
0:01:38.5]} 38... h5 {[%clk 0:00:39.9]} 39. Rf5 {[%clk 0:01:32.5]} 39... h4
{[%clk 0:00:35.9]} 40. Rh5 {[%clk 0:01:30.5]} 40... Rh1 {[%clk 0:00:33]} 41. Ke5
{[%clk 0:01:29]} 41... h3 {[%clk 0:00:32.6]} 42. f5 {[%clk 0:01:25.4]} 42... h2
{[%clk 0:00:28]} 43. Kf4 {[%clk 0:01:25.5]} 43... a5 {[%clk 0:00:25.6]} 44. Kg3
{[%clk 0:01:23.8]} 44... b4 {[%clk 0:00:22.9]} 45. cxb4 {[%clk 0:01:20.5]} 45...
axb4 {[%clk 0:00:23.8]} 46. Kg2 {[%clk 0:01:08.7]} 46... Ra1 {[%clk 0:00:23.6]}
47. Rxh2 {[%clk 0:01:04.8]} 47... Rxa2 {[%clk 0:00:23.7]} 48. Rh7 {[%clk
0:01:05.3]} 48... b3 {[%clk 0:00:21.5]} 49. Rh3 {[%clk 0:00:58.5]} 49... Ra3
{[%clk 0:00:18.9]} 50. Rc3+ {[%clk 0:00:51.3]} 50... Kd6 {[%clk 0:00:17.7]} 51.
Rd3+ {[%clk 0:00:48.6]} 51... Ke7 {[%clk 0:00:14.9]} 52. Rd2 {[%clk 0:00:47.1]}
52... c5 {[%clk 0:00:12.5]} 53. f3 {[%clk 0:00:41.4]} 53... c4 {[%clk
0:00:12.6]} 54. Kg3 {[%clk 0:00:41.8]} 54... c3 {[%clk 0:00:12.7]} 55. Rd3
{[%clk 0:00:42.3]} 55... b2 {[%clk 0:00:11.6]} 56. Re3+ {[%clk 0:00:43.2]} 56...
Kf7 {[%clk 0:00:11.2]} 57. Rd3 {[%clk 0:00:43.7]} 57... b1=Q {[%clk 0:00:11]}
58. Rd7+ {[%clk 0:00:44.6]} 58... Kf6 {[%clk 0:00:11]} 59. Rd6+ {[%clk
0:00:44.2]} 59... Kxf5 {[%clk 0:00:11]} 60. Rd5+ {[%clk 0:00:43.7]} 60... Ke6
{[%clk 0:00:11.2]} 61. Rg5 {[%clk 0:00:39.4]} 61... Qg1+ {[%clk 0:00:10.9]} 62.
Kf4 {[%clk 0:00:39.4]} 62... Qxg5+ {[%clk 0:00:11.8]} 63. Kxg5 {[%clk
0:00:39.6]} 63... c2 {[%clk 0:00:12.7]} 64. f4 {[%clk 0:00:40]} 64... c1=Q
{[%clk 0:00:13.1]} 65. Kg6 {[%clk 0:00:40.9]} 65... Qxf4 {[%clk 0:00:12.4]} 66.
Kh7 {[%clk 0:00:41.8]} 66... g5 {[%clk 0:00:11.5]} 67. Kg8 {[%clk 0:00:42.7]}
67... Qf7+ {[%clk 0:00:11.2]} 68. Kh8 {[%clk 0:00:42.8]} 68... Ra8# {[%clk
0:00:11.7]} 0-1

[Event "*** Titled Tuesday Blitz"]
[Site "Chess.com"]
[Date "2021.03.02"]
[Round "9"]
[White "howitzer14"]
[Black "Msb2"]
[Result "1-0"]
[WhiteElo "3014"]
[BlackElo "2891"]
[TimeControl "180+1"]
[EndTime "11:47:52 PST"]
[Termination "howitzer14 won by resignation"]

1. e3 {[%clk 0:02:58.6]} 1... d5 {[%clk 0:02:58.7]} 2. Nf3 {[%clk 0:02:55.1]}
2... Nf6 {[%clk 0:02:58.1]} 3. c4 {[%clk 0:02:54.5]} 3... c6 {[%clk 0:02:53.2]}
4. Nc3 {[%clk 0:02:48.9]} 4... e6 {[%clk 0:02:49.5]} 5. b3 {[%clk 0:02:45.7]}
5... Bd6 {[%clk 0:02:49.4]} 6. Qc2 {[%clk 0:02:44.3]} 6... O-O {[%clk
0:02:47.4]} 7. Bb2 {[%clk 0:02:44]} 7... e5 {[%clk 0:02:47.7]} 8. cxd5 {[%clk
0:02:43.6]} 8... cxd5 {[%clk 0:02:48.6]} 9. Nb5 {[%clk 0:02:44.3]} 9... Nc6
{[%clk 0:02:46.2]} 10. Nxd6 {[%clk 0:02:42.4]} 10... Qxd6 {[%clk 0:02:47.1]} 11.
d4 {[%clk 0:02:42]} 11... Nb4 {[%clk 0:02:30.7]} 12. Qd1 {[%clk 0:02:40.4]}
12... e4 {[%clk 0:02:02.7]} 13. Ne5 {[%clk 0:02:38.7]} 13... Ne8 {[%clk
0:02:02.8]} 14. a3 {[%clk 0:02:34.2]} 14... Na6 {[%clk 0:01:57.7]} 15. h3 {[%clk
0:02:21.2]} 15... f6 {[%clk 0:01:56.1]} 16. Ng4 {[%clk 0:02:21.3]} 16... h5
{[%clk 0:01:23.5]} 17. Nh2 {[%clk 0:02:19.9]} 17... g6 {[%clk 0:01:24.2]} 18.
Be2 {[%clk 0:02:17.6]} 18... f5 {[%clk 0:01:23.5]} 19. Qd2 {[%clk 0:02:13.5]}
19... Bd7 {[%clk 0:01:20.3]} 20. O-O-O {[%clk 0:02:08.9]} 20... Nec7 {[%clk
0:01:06.1]} 21. Kb1 {[%clk 0:02:05.5]} 21... Bb5 {[%clk 0:00:56.2]} 22. Rc1
{[%clk 0:01:56.8]} 22... Rac8 {[%clk 0:00:55.8]} 23. f3 {[%clk 0:01:46.5]} 23...
Bxe2 {[%clk 0:00:44]} 24. Qxe2 {[%clk 0:01:47.4]} 24... Ne6 {[%clk 0:00:44.5]}
25. Rxc8 {[%clk 0:01:42]} 25... Rxc8 {[%clk 0:00:44.3]} 26. g4 {[%clk
0:01:39.3]} 26... hxg4 {[%clk 0:00:31.3]} 27. hxg4 {[%clk 0:01:37.7]} 27... f4
{[%clk 0:00:24.9]} 28. fxe4 {[%clk 0:01:32.1]} 28... dxe4 {[%clk 0:00:20]} 29.
Nf1 {[%clk 0:01:29.1]} 29... f3 {[%clk 0:00:19.4]} 30. Qe1 {[%clk 0:01:20.7]}
30... Qc7 {[%clk 0:00:14.4]} 31. d5 {[%clk 0:01:14.3]} 31... Ng7 {[%clk
0:00:14.2]} 32. Qh4 {[%clk 0:01:08.1]} 32... Qc2+ {[%clk 0:00:02.8]} 33. Ka2
{[%clk 0:01:07.5]} 33... Rc3 {[%clk 0:00:03.6]} 34. Qd8+ {[%clk 0:00:59.5]}
34... Kf7 {[%clk 0:00:03.5]} 35. Qd7+ {[%clk 0:00:59.3]} 35... Kg8 {[%clk
0:00:04]} 36. Qd8+ {[%clk 0:00:23.4]} 36... Kf7 {[%clk 0:00:03.9]} 37. Qd7+
{[%clk 0:00:23.3]} 37... Kg8 {[%clk 0:00:04.5]} 38. Qxb7 {[%clk 0:00:24]} 38...
Nc5 {[%clk 0:00:04.4]} 39. Qb8+ {[%clk 0:00:21]} 39... Kf7 {[%clk 0:00:05]} 40.
Qxa7+ {[%clk 0:00:20.6]} 40... Kg8 {[%clk 0:00:05.7]} 41. Qb8+ {[%clk
0:00:13.4]} 41... Kf7 {[%clk 0:00:06.2]} 42. Rh7 {[%clk 0:00:14]} 42... Nxb3
{[%clk 0:00:05.4]} 43. Qb7+ {[%clk 0:00:10.2]} 43... Rc7 {[%clk 0:00:04.1]} 44.
Rxg7+ {[%clk 0:00:09.2]} 44... Kf8 {[%clk 0:00:05]} 45. Qxb3 {[%clk 0:00:05.5]}
45... Qxb3+ {[%clk 0:00:03.6]} 46. Kxb3 {[%clk 0:00:06.2]} 1-0